Cogmind - Beta 9.3 @@@ ROGUE MODE // 2019.12.17 @ 09:13:40 // Winter2019/RPGLIKE Player: Someone64 Result: Destroyed by Y-45 Defender with Heavy Assault Rifle Performance ------------- Evolutions (1) 500 Regions Visited (2) 400 Robots Destroyed (14) 70 Value Destroyed (280) 280 Prototype IDs (0) 0 Alien Tech Used (0) 0 Bonus (0) 0 TOTAL SCORE: 1250 Bonus ------- None Cogmind --------- Core Integrity 0/700 Matter 257/300 Energy 243/250 System Corruption 0% Temperature Cool (11) Movement Walking (120) Location -9/Materials Parts ------- > --- POWER (1) -------- Ion Engine > --- PROPULSION (2) --- Aluminum Leg Aluminum Leg > --- UTILITY (2) ------ ECM Suite Reclamation Unit > --- WEAPON (2) ------- Heavy EM Pulse Gun EM Shotgun > --- INVENTORY (3) ---- Light Treads Light Assault Rifle Mace Peak State ------------ > --- POWER ------------ Ion Engine > --- PROPULSION ------- Aluminum Leg Aluminum Leg > --- UTILITY ---------- ECM Suite Reclamation Unit > --- WEAPON ----------- Heavy EM Pulse Gun EM Shotgun > --- INVENTORY -------- (None) [Rating: 10] Favorites ----------- Power Light Ion Engine Engine Light Ion Engine Propulsion Aluminum Leg Leg Aluminum Leg Wheel Wheel Flight Unit Flight Unit Utility ECM Suite Device ECM Suite Weapon Heavy EM Pulse Gun Energy Gun Heavy EM Pulse Gun Ballistic Gun Assault Rifle Launcher Grenade Launcher Impact Weapon Hammer Build | -11 -10 -9 ------- Run | Scr Mat Mat Slots Evolved 3 | 2 . 1 Power . | . . . Propulsion 1 | . . 1 Utility 1 | 1 . . Weapon 1 | 1 . . Parts Attached 21 | 4 6 11 Power 3 | 1 1 1 Engine 3 | 1 1 1 Core . | . . . Reactor . | . . . Propulsion 9 | 1 1 7 Treads . | . . . Leg 4 | . . 4 Wheel 2 | 1 . 1 Hover . | . . . Flight 3 | . 1 2 Utility 2 | . 1 1 Device 2 | . 1 1 Storage . | . . . Processor . | . . . Hackware . | . . . Protection . | . . . Artifact . | . . . Weapon 7 | 2 3 2 Energy Gun 3 | . 1 2 Energy Cannon . | . . . Ballistic Gun 2 | 2 . . Ballistic Cannon . | . . . Launcher 1 | . 1 . Special Weapon . | . . . Impact Weapon 1 | . 1 . Slashing Weapon . | . . . Piercing Weapon . | . . . Special Melee Weapon . | . . . Unidentified Prototypes . | . . . Parts Lost . | . . . Power . | . . . Propulsion . | . . . Utility . | . . . Weapon . | . . . Highest Loss Streak . | . . . Average Slot Usage (%) 79 | . 61 88 Engine 14 | . 16 13 Leg 9 | . . 14 Wheel 3 | . 3 3 Flight 6 | . 12 3 Device 16 | . 2 23 Energy Gun 18 | . 2 26 Ballistic Gun 2 | . 8 . Launcher 3 | . 9 . Impact Weapon 2 | . 5 1 Naked Turns . | . . . Heaviest Build 13 | 9 10 13 Greatest Support 20 | 10 10 20 Greatest Overweight (x) 4 | . 3 4 Average Overweight (x) . | . . . Largest Inventory Capacity 3 | . . 3 Average Capacity . | . . . Most Carried 3 | . . 3 Average Carried . | . . . Final Capacity 3 | . . 3 Final Carried 3 | . . 3 Class Distribution -------------------- 100% | Mutant Dominant Class ---------------- Mutant | -10/Materials Mutant | -9/Materials Resources | -11 -10 -9 ----------- Run | Scr Mat Mat Matter Collected 427 | 240 12 175 Remotely . | . . . Salvage Created 244 | . 12 232 Parts 33 | . 13 20 Haulers Intercepted . | . . . Recyclers Shooed 1 | . . 1 Parts Field Recycled . | . . . Retrieved Matter . | . . . Parts Self-Destructed . | . . . Prevented . | . . . Kills | -11 -10 -9 ------- Run | Scr Mat Mat Combat Hostiles Destroyed 10 | . 4 6 Guns 6 | . 1 5 AOE 4 | . 3 1 Classes Destroyed 6 | . 2 4 Builder 1 | . . 1 Tunneler 1 | . . 1 Operator 1 | . . 1 Watcher 1 | . . 1 Swarmer 6 | . 3 3 Grunt 4 | . 1 3 Best Kill Streak 5 | . 3 5 Combat Bots Only 3 | . 3 3 Max Kills in Single Turn 2 | . 2 1 Gunslinging . | . . . Exploded 2 | . 2 1 Melee . | . . . Uniques/NPCs Destroyed . | . . . Combat | -11 -10 -9 -------- Run | Scr Mat Mat Damage Taken 833 | . 335 498 Core 700 | . 289 411 Absorbed by Shields . | . . . Redirected to Core 442 | . 152 290 Core Remaining (%) 79 | 100 58 . Volleys Fired 32 | . 8 24 Largest 2 | . 1 2 Hottest 85 | . 30 85 Shots Fired 56 | . 8 48 Gun 50 | . 2 48 Cannon . | . . . Launcher 6 | . 6 . Special . | . . . Kinetic 2 | . 2 . Thermal 24 | . . 24 Explosive 6 | . 6 . Electromagnetic 24 | . . 24 Robot Hit Streak 9 | . 2 9 Robot Miss Streak 2 | . 1 2 Penetration Max . | . . . Secondary Targets 1 | . . 1 Max Gunslinging Chain 1 | . . 1 Shots Hit Robots 36 | . 9 27 Core Hits 19 | . 5 14 Critical Hits . | . . . Critical Kills . | . . . Critical Parts Destroyed . | . . . Melee Attacks 9 | . 9 . Impact 9 | . 9 . Slashing . | . . . Piercing . | . . . Sneak Attacks . | . . . Combat Hostiles . | . . . Follow-up Attacks . | . . . Damage Inflicted 988 | . 325 663 Guns 430 | . 13 417 Cannons . | . . . Explosions 434 | . 188 246 Melee 120 | . 120 . Ramming 4 | . 4 . Kinetic 13 | . 13 . Thermal 240 | . . 240 Explosive 326 | . 188 138 Electromagnetic 285 | . . 285 Impact 120 | . 120 . Slashing . | . . . Piercing . | . . . Highest Corruption . | . . . Average Corruption . | . . . Corruption Purged . | . . . Overload Shots . | . . . Overflow Damage 23 | . 6 17 Projectiles . | . . . Explosions 17 | . . 17 Melee 6 | . 6 . Knockbacks . | . . . Impact . | . . . Kinetic . | . . . Secondary . | . . . Self-Inflicted Damage 211 | . 20 191 Shots 4 | . 1 3 Rammed 2 | . 2 . Targets Rammed 2 | . 2 . Kicked . | . . . Crushed . | . . . Highest Temperature 262 | . 8 262 Average Temperature 80 | . 4 87 Received Heat Transfer 219 | . 180 39 Siege Activations . | . . . Robots Corrupted . | . . . Combat Hostiles . | . . . Parts Fried 2 | . . 2 Impact Corruptions 1 | . 1 . Robots Melted . | . . . Combat Hostiles . | . . . Parts Melted . | . . . Heat Transferred 500 | . . 500 Parts Sabotaged . | . . . Parts Stolen . | . . . Parts Stripped . | . . . Power Chain Reactions 3 | . . 3 Missiles Intercepted . | . . . Alert | -11 -10 -9 ------- Run | Scr Mat Mat Peak Influence 390 | . 135 390 Average Influence 146 | . 97 182 Maximum Alert Level 1 | . . 1 Low Security (%) 73 | 100 100 58 Level 1 26 | . . 41 Level 2 . | . . . Level 3 . | . . . Level 4 . | . . . Level 5 . | . . . High Security . | . . . Max Security . | . . . Squads Dispatched 1 | . . 1 Investigation . | . . . Extermination . | . . . Reinforcement 1 | . . 1 Assault . | . . . Garrison . | . . . Intercept . | . . . Construction Impeded . | . . . Haulers Reinforced . | . . . Stealth | -11 -10 -9 --------- Run | Scr Mat Mat Distress Signals 3 | . 1 2 Communications Jammed . | . . . Distress Signals . | . . . Times Spotted 24 | . 8 16 Peak Tracking Total 5 | . 5 4 Tactical Retreats 3 | . 1 2 Traps | -11 -10 -9 ------- Run | Scr Mat Mat Traps Triggered 1 | . . 1 Indirectly . | . . . Trap Hack Attempts . | . . . Triggered . | . . . Disarmed . | . . . Reprogrammed . | . . . Reused . | . . . Traps Extracted . | . . . Installed . | . . . Triggered . | . . . Machines | -11 -10 -9 ---------- Run | Scr Mat Mat Machines Disabled 4 | . 1 3 Max in Single Turn 1 | . 1 1 Machines Sabotaged . | . . . Garrisons Compromised . | . . . Overloaded Fab Kills . | . . . Fab Network Shutdowns . | . . . Hacking | -11 -10 -9 --------- Run | Scr Mat Mat Machines Accessed 6 | . 1 5 Terminals 5 | . 1 4 Fabricators . | . . . Repair Stations . | . . . Recycling Units 1 | . . 1 Scanalyzers . | . . . Garrison Access . | . . . Total Hacks 10 | . 2 8 Successful 6 | . . 6 Failed 4 | . 2 2 Catastrophic . | . . . Database Lockouts . | . . . Manual 1 | . . 1 Terminals 8 | . 2 6 Fabricators . | . . . Repair Stations . | . . . Recycling Units 2 | . . 2 Scanalyzers . | . . . Garrison Access . | . . . Terminal Hacks 4 | . . 4 Alert Level 1 | . . 1 Security Status 1 | . . 1 Patrol Status 1 | . . 1 Zone Layout 1 | . . 1 Fabricator Hacks . | . . . Repair Station Hacks . | . . . Recycling Unit Hacks 2 | . . 2 Report Inventory 1 | . . 1 Retrieve Components 1 | . . 1 Scanalyzer . | . . . Garrison Access Hacks . | . . . Unauthorized Hacks . | . . . Terminals . | . . . Fabricators . | . . . Repair Stations . | . . . Recycling Units . | . . . Scanalyzers . | . . . Garrison Access . | . . . Data Cores Recovered . | . . . Used . | . . . Hacking Detections 2 | . 1 1 Full Trace Events . | . . . Feedback Events . | . . . Feedback Blocked . | . . . Robot Schematics Acquired . | . . . Robots Built . | . . . Matter . | . . . Time . | . . . Total Robot Build Rating . | . . . Part Schematics Acquired . | . . . Parts Built . | . . . Matter . | . . . Time . | . . . Total Part Build Rating . | . . . Parts Repaired . | . . . Time . | . . . Parts Recycled . | . . . Recycled Matter . | . . . Retrieved Matter . | . . . Retrieved Components 10 | . . 10 Parts Scanalyzed . | . . . Part Schematics Acquired . | . . . Parts Damaged . | . . . Bothacking | -11 -10 -9 ------------ Run | Scr Mat Mat Used RIF Installer . | . . . Robots Hacked . | . . . Non-combat . | . . . Combat . | . . . Robot Hacks Applied . | . . . Relay Couplers Released . | . . . Robots Rewired . | . . . Allies Hacked . | . . . Hacks Repelled . | . . . Allies | -11 -10 -9 -------- Run | Scr Mat Mat Total Allies . | . . . Largest Group . | . . . Highest-Rated Group . | . . . Highest-Rated Ally . | . . . Total Orders . | . . . Ally Attacks . | . . . Total Damage . | . . . Kills . | . . . Allies Corrupted . | . . . Allies Melted . | . . . Intel | -11 -10 -9 ------- Run | Scr Mat Mat Robot Analysis Total . | . . . Derelict Logs Recovered . | . . . Drone Launches . | . . . Drone Recoveries . | . . . Exploration | -11 -10 -9 ------------- Run | Scr Mat Mat Turns Passed 787 | 38 251 498 Spaces Moved 545 | 40 165 340 Core 13 | 9 1 3 Treads . | . . . Legs 154 | . . 154 Wheels 196 | 31 44 121 Hover . | . . . Flight 182 | . 120 62 Fastest Speed 50 | 50 80 80 Average Speed 105 | 73 110 106 Slowest Speed 250 | 80 200 250 Overloaded Moves . | . . . Propulsion Burnouts . | . . . Robots Hopped . | . . . Cave-ins Triggered . | . . . Exploration Rate (%) 24 | 3 29 40 Regions Visited 2 Branch Regions . Pre-discovered Areas . | . . . Known Exits Taken . | . . . Unknown Exits Taken 2 | 1 1 . Scrap Searched . | . . . Spaces Dug . | . . . Terrain Destroyed 72 | . 32 40 Melee . | . . . Projectile . | . . . AOE 72 | . 32 40 Actions | -11 -10 -9 --------- Run | Scr Mat Mat Total 684 | 46 211 427 Wait 60 | 3 17 40 Move 543 | 39 164 340 Hop . | . . . Pick Up 3 | . . 3 Fast Attach 21 | 4 6 11 Attach . | . . . Detach . | . . . Swap . | . . . Drop 14 | . 5 9 Fire 32 | . 8 24 Melee 9 | . 9 . Ram 2 | . 2 . Kick . | . . . Crush . | . . . Escape Stasis . | . . . Rewire . | . . . Trap . | . . . Miscellaneous . | . . . Route ------- -11/Scrapyard -10/Materials -9/Materials (discovered 1 exit: [*Min]) History --------- Turn | Location | Event 1 | -11/Scrapyard | Upgraded with Utility slot (x1) 1 | -11/Scrapyard | Upgraded with Weapon slot (x1) 2 | -11/Scrapyard | Met Revision 17 8 | -11/Scrapyard | Discovered new exit (range 18) 39 | -11/Scrapyard | Entered Materials 284 | -10/Materials | Discovered new exit (range 5) 290 | -10/Materials | Entered another Materials area 292 | -9/Materials | Reached level 2 294 | -9/Materials | Upgraded with Propulsion slot (x1) 316 | -9/Materials | Build established: Mutant 542 | -9/Materials | Core integrity fell below 50% 645 | -9/Materials | Core integrity fell below 20% 647 | -9/Materials | Reached level 3 749 | -9/Materials | Discovered new exit (range 17) 788 | -9/Materials | Destroyed by Y-45 Defender with Heavy Assault Rifle Last Messages --------------- Found 3 active patrol squads. Downloaded coordinate data. 00721_ T-07 Excavator is excavating. 00732_ K-01 Serf cleans the Terminal. 00736_ Acquired 15 matter. 00736_ K-01 Serf cleans the Terminal. 00737_ Acquired data core, dynamic key expired. 00738_ Acquired 51 matter. 00739_ Connecting with Terminal... >>Layout(Zone) Retrieving Zone 1V layout... Downloaded map data. 00740_ Upgraded: Inventory Capacity (+3) 00740_ K-01 Serf cleans the Terminal. 00749_ EXIT=FOUND 00753_ K-01 Serf cleans the Terminal. 00754_ Acquired Mace. 00756_ Acquired Lgt. Assault Rifle. 00759_ Acquired Lgt. Treads. 00762_ K-01 Serf cleans the Terminal. Map ----- +----------------------------------------------------+ | ?????????????????????????????????????????????????? | | ?????????????????????????????????????????????????? | | ?????????????????????????????????????????????????? | | ?????????????????????????????????????????????????? | | ?????????????????????????????????????????????????? | | ?????????????????????????????????????????????????? | | ?????????????????????????????????????????????????? | | ? ??????????????????????????????????????????????? | | ? ??????????????????????????????????????????????? | | ? ??????????????????????????????????????????????? | | ? ??????????????????????????????????????????????? | | ? ??????????????????????????????????????????????? | | ? ??????????????????????????????????????????????? | | ? ??????????????????????????????????????????????? | | ? ??????????????????????????????????????????????? | | ? #?????????????????????????????????????????????? | | ?# #?????????????????????????????????????????????? | | ?# #?????????????????????????????????????????????? | | ?#[#?????????????????????????????????????????????? | | ?# #?????????????????????????????????????????????? | | ?# #?????????????????????????????????????????????? | | ?#%#????????????????????########?????????????????? | | ## #???# #????????#]]!!//#?????????????????? | | # #???# #????????#]]!!//#?????????????????? | | #=##### ########## #?????????????????? | | # ##+####### #@ # ##??????????????? | | # #??????????????? | | + < #??????????????? | | # #??????????????? | | # ##+#######" "## #??????????????? | | ## ## ##" |"| "#? #??????????????? | | ## ## ##"""""""#? #??????????????? | | ### ## ##########? #??????????????? | | ??# ## """ #?????????? #???#??????????? | | ?## ##""""" #?????????? ###+#??? ??????????? | | ## #""""" #####?????? #??????? ??????????? | | #""""" + ?????? Y #??????? ??????????? | | T # """ #####??????? #??????? ??????????? | | # #? ????????? #??????? ??????????? | | ## # #?? ????????+###??????# #?????????? | | ?## ## #?????????????????????# #?????????? | | ??# ##############?????????????????# #?????????? | | ??# #?????# ?????????????????# #?????????? | | ??# #?????# """"" ?????????????????# #?????????? | | ?## ####### """"" ?????????????????# #?????????? | | ?# # """"" ?????????????????# #?????????? | | ?# # ??????############ ########### | | ?# + ??????# # " | | ?# [[ # ??????# # "" | | ?# [[ # "" ??????# # | +----------------------------------------------------+ Best States ------------- Heat Dissipation 25 Energy Generation 10 Energy Capacity 250 Matter Stores 300 Matter Capacity 300 Sight Range 18 Robot Scan Range 8 Terrain Scan Density 10 ECM Strength 1 Reclamation Efficiency 10 Evasion (%) 44 Item Schematics ----------------- None Robot Schematics ------------------ None Fabricated ------------ Nothing Alien Tech Used ----------------- None Achievements -------------- None Challenges ------------ None RPGLIKE | -11 -10 -9 --------- Run | Scr Mat Mat Levels Raised 2 | . . 2 XP Earned 6050 | 3000 525 2525 XP Spent 5810 | 2710 . 3100 Upgrades 19 | 12 . 7 Propulsion Slot 1 | . . 1 Utility Slot 1 | 1 . . Weapon Slot 1 | 1 . . Core Integrity 2 | 2 . . Inventory Capacity 3 | . . 3 Sight Range 2 | 2 . . Sensor Range 4 | 4 . . Ranged Accuracy 3 | 2 . 1 Melee Accuracy 2 | . . 2 Protomatter Created 136 | . 63 73 Protomatter Decayed 124 | . 28 96 Game ------ Seed GravmagMatterPropulsion Manual? 0 Play Time 00:15:48 Cumulative 5.9 hours Start 2019.12.17 @ 09:00:44 End 2019.12.17 @ 09:13:40 Sessions 1 Manual Loads 0 Difficulty Rogue Special Mode Winter2019/RPGLIKE Game No. 21 Rogue 21 Adventurer 0 Explorer 0 Win Type - Total 0 Types 0/0/0/0/0/0/0 Lore% 6 Gallery% 17 Achievement% 14 Wizard Run 0 Options --------- ASCII 0 Keyboard 0 Movement Numpad Keybinds 0 Fullscreen 2 Font 16/Cog Map View 76x50 Tactical HUD 1 Map Filters NONE Filters NONE Steam 1 RUN: 23c3de31-21eb-4eba-b40a-f036fef0bd20